fUST/lending_fUST_20240308
["ID","MTS","AMOUNT","RATE_DAILY","PERIOD"]
[317611656,1709872244047,-1180.42,0.00022997,2]
[317611658,1709872244056,-1180.42,0.00022997,2]
[317611660,1709872244065,-1180.42,0.00022997,2]
[317611662,1709872244080,-1180.42,0.00022997,2]
[317611664,1709872244089,-1180.42,0.00022997,2]
[317611666,1709872244098,-1180.42,0.00022997,2]
[317611668,1709872244107,-1180.42,0.00022997,2]
[317611670,1709872244116,-1180.48413196,0.00022997,2]
[317611672,1709872244126,-500.0,0.00022997,2]
[317611674,1709872244135,-500.0,0.00022997,2]
[317611676,1709872244144,-500.0,0.00022997,2]
[317611678,1709872244154,-500.0,0.00022997,2]
[317611680,1709872244162,-8717.1,0.00022997,2]
[317611682,1709872244172,-8717.1,0.00022997,2]
[317611683,1709872244180,-8717.1,0.00022997,2]
[317611685,1709872244189,-8717.1,0.00022997,2]
[317611687,1709872244199,-28070.81669106,0.00022998,3]
[317611689,1709872244208,-877.5031852,0.00022998,2]
[317611691,1709872244217,-214.95418178,0.00022998,2]
[317611693,1709872244227,-1472.85786267,0.00022998,2]
[317611695,1709872244235,-155.12565178,0.00022998,2]
[317611697,1709872244245,-500.0,0.00022998,2]
[317611699,1709872244254,-500.0,0.00022998,2]
[317611701,1709872244263,-500.0,0.00022998,2]
[317611703,1709872244272,-989.92767393,0.00022998,2]
[317611730,1709872244512,-500.0,0.00022739,2]
[317611731,1709872244522,-500.0,0.00022739,2]
[317611733,1709872244533,-500.0,0.00022739,2]
[317611735,1709872244544,-500.0,0.00022739,2]
[317611737,1709872244553,-192.05164608,0.00022796,2]
[317611740,1709872244566,-307.94835392,0.00022796,2]
[317611742,1709872244574,-500.0,0.00022796,2]
[317611743,1709872244584,-500.0,0.00022797,2]
[317611745,1709872244594,-249.86290285,0.00022797,2]
[317611906,1709872246314,-500.0,0.00022739,2]
[317611907,1709872246324,-500.0,0.00022739,2]
[317611908,1709872246333,-500.0,0.00022739,2]
[317611909,1709872246342,-500.0,0.00022739,2]
[317611910,1709872246353,-500.0,0.00022796,2]
[317611911,1709872246363,-500.0,0.00022796,2]
[317611912,1709872246373,-500.0,0.00022796,2]
[317611913,1709872246383,-500.0,0.00022796,2]
[317611914,1709872246392,-500.0,0.00022796,2]
[317611915,1709872246401,-500.0,0.00022796,2]
[317611916,1709872246411,-250.13709715,0.00022797,2]
[317611917,1709872246421,-500.0,0.00022797,2]
[317611918,1709872246431,-500.0,0.00022797,2]
[317611919,1709872246440,-500.0,0.00022798,2]
[317611920,1709872246450,-500.0,0.00022798,2]
[317611921,1709872246459,-500.0,0.00022798,2]
[317611922,1709872246468,-500.0,0.00022798,2]
[317611923,1709872246477,-500.0,0.00022798,2]
[317611924,1709872246486,-500.0,0.00022798,2]
[317611925,1709872246496,-500.0,0.00022798,2]
[317611927,1709872246506,-590.82503357,0.00022799,2]
[317611928,1709872246516,-244.64443501,0.00022799,2]
[317611929,1709872246525,-500.0,0.00022799,2]
[317611931,1709872246535,-500.0,0.00022799,2]
[317611933,1709872246544,-500.0,0.00022799,2]
[317611935,1709872246556,-500.0,0.00022859,2]
[317611937,1709872246568,-500.0,0.00022897,2]
[317611939,1709872246579,-500.0,0.00022898,2]
[317611941,1709872246590,-500.0,0.00022898,2]
[317611943,1709872246600,-500.0,0.00022899,2]
[317611945,1709872246610,-500.0,0.00022958,2]
[317611947,1709872246621,-500.0,0.00022983,2]
[317611949,1709872246633,-500.0,0.00022984,2]
[317611951,1709872246643,-814.75,0.00022995,2]
[317611953,1709872246654,-814.75,0.00022995,2]
[317611955,1709872246665,-814.75,0.00022995,2]
[317611957,1709872246676,-814.75,0.00022995,2]
[317611959,1709872246686,-500.0,0.00022995,2]
[317611961,1709872246698,-814.75,0.00022995,2]
[317611963,1709872246708,-637.17471686,0.00022996,2]
[317611965,1709872246720,-512.13232607,0.00022998,2]
[317611967,1709872246731,-1502.06,0.00022998,2]
[317611969,1709872246741,-1502.06,0.00022998,2]
[317611971,1709872246751,-433.37487977,0.00022998,2]
[317613231,1709872542549,169.9582587,0.00019527,2]
[317613232,1709872573936,155.0697814,0.00019527,2]
[317613234,1709872589953,215.18352773,0.00019527,2]
[317613236,1709872976163,166.666666,0.00019178,2]
[317613237,1709872995856,369.27962964,0.00019527,2]
[317613238,1709873015784,307.7330247,0.00019178,2]
[317613239,1709873035814,160.32890587,0.00019178,2]
[317613240,1709873055803,160.32890587,0.00019178,2]
[317613241,1709873071789,160.32890587,0.00019178,2]
[317613243,1709873093798,160.32890587,0.00019178,2]
[317613244,1709873109798,160.32890587,0.00019178,2]
[317613245,1709873131804,160.32890587,0.00019178,2]
[317613247,1709873147806,160.32890587,0.00019178,2]
[317613248,1709873165803,160.32890587,0.00019178,2]
[317613249,1709873183806,160.32890587,0.00019178,2]
[317613250,1709873203821,160.32890587,0.00019178,2]
[317613251,1709873223809,243.1090895,0.00019178,2]
[317613346,1709873438476,-401.30154956,0.0002041,2]
[317613347,1709873438485,-528.48551733,0.00020411,2]
[317613348,1709873438496,-211.97574014,0.00020411,2]
[317613349,1709873438506,-539.02796676,0.00020412,2]
[317613350,1709873438515,-238.84175043,0.00020412,2]
[317613351,1709873438524,-117.8864594,0.00020413,2]
[317613352,1709873438535,-664.34951987,0.00020413,2]
[317613353,1709873438545,-682.32366189,0.00020413,2]
[317613354,1709873438555,-191.4800443,0.00020413,2]
[317613355,1709873438565,-155.07443573,0.00020414,2]
[317613356,1709873438573,-346.40206465,0.00020414,2]
[317613357,1709873438585,-14906.75532371,0.00020414,2]
[317613358,1709873438594,-163.32544229,0.00020415,2]
[317613359,1709873438603,-595.99810704,0.00020415,2]
[317613360,1709873438612,-2597.41386237,0.00020415,2]
[317613361,1709873438622,-15443.27798767,0.00020415,2]
[317613362,1709873438631,-745.65931905,0.00020416,2]
[317613363,1709873438640,-524.29941204,0.00020416,2]
[317613364,1709873438649,-1473.92538483,0.00020417,2]
[317613365,1709873438659,-331.16400837,0.00020417,2]
[317613366,1709873438667,-2114.49634581,0.00020417,2]
[317613367,1709873438677,-20501.31418915,0.00020418,2]
[317613368,1709873438685,-10266.9033008,0.00020418,2]
[317613369,1709873438694,-3499.08030762,0.00022,2]
[317613370,1709873438703,-188.0,0.00022,2]
[317613371,1709873438712,-188.0,0.00022192,2]
[317613372,1709873438721,-155.08496556,0.000223,2]
[317613374,1709873438730,-5000.0,0.00022482,7]
[317613376,1709873438739,-194.64833249,0.00022639,2]
[317613378,1709873438748,-194.64833249,0.00022639,2]
[317613380,1709873438758,-194.64,0.00022639,2]
[317613382,1709873438767,-183.8373441,0.00022639,2]
[317613384,1709873438776,-183.83,0.00022639,2]
[317613386,1709873438785,-163.41097253,0.00022639,2]
[317613388,1709873438794,-163.41097253,0.00022639,2]
[317613389,1709873438803,-163.41097253,0.00022639,2]
[317613392,1709873438814,-163.41097253,0.00022639,2]
[317613394,1709873438824,-163.41097253,0.00022639,2]
[317613396,1709873438833,-163.41097253,0.00022639,2]
[317613398,1709873438842,-163.41097253,0.00022639,2]
[317613399,1709873438851,-163.41097253,0.00022639,2]
[317613401,1709873438860,-163.41,0.00022639,2]
[317613403,1709873438870,-9605.20736148,0.00022639,2]
[317613405,1709873438881,-1000.0,0.00022726,2]
[317613407,1709873438890,-1000.0,0.00022729,2]
[317613409,1709873438899,-155.07443573,0.00022737,2]
[317613411,1709873438909,-4185.11997358,0.00022738,2]
[317613413,1709873438919,-500.0,0.00022738,2]
[317613415,1709873438928,-500.0,0.00022738,2]
[317613417,1709873438938,-500.0,0.00022738,2]
[317613419,1709873438947,-500.0,0.00022738,2]
[317613421,1709873438957,-550.11008926,0.00022738,2]
[317613423,1709873438966,-500.0,0.00022738,2]
[317613425,1709873438975,-167.89516301,0.00022738,2]
[317613437,1709873439077,-158.54860476,0.00022738,2]
[317613439,1709873439088,-500.0,0.00022738,2]
[317613441,1709873439099,-185.24552754,0.00022738,2]
[317613443,1709873439108,-500.0,0.00022738,2]
[317613445,1709873439117,-500.0,0.00022738,2]
[317613447,1709873439127,-500.0,0.00022738,2]
[317613449,1709873439137,-500.0,0.00022738,2]
[317613451,1709873439146,-500.0,0.00022738,2]
[317613453,1709873439156,-500.0,0.00022738,2]
[317613455,1709873439166,-500.0,0.00022738,2]
[317613457,1709873439176,-407.38,0.00022738,2]
[317613459,1709873439187,-407.38,0.00022738,2]
[317613461,1709873439196,-407.38,0.00022738,2]
[317613463,1709873439206,-407.38,0.00022738,2]
[317613465,1709873439215,-407.38,0.00022738,2]
[317613467,1709873439224,-407.38,0.00022738,2]
[317613469,1709873439234,-407.38,0.00022738,2]
[317613471,1709873439243,-407.38,0.00022738,2]
[317613473,1709873439252,-407.38,0.00022738,2]
[317613476,1709873439262,-407.38,0.00022738,2]
[317613477,1709873439271,-500.0,0.00022738,2]
[317613479,1709873439280,-550.0,0.00022738,2]
[317613481,1709873439290,-203.79821992,0.00022738,2]
[317613483,1709873439299,-480.57555407,0.00022738,2]
[317613485,1709873439309,-500.0,0.00022738,2]
[317613488,1709873439319,-200.0,0.00022738,2]
[317613489,1709873439328,-231.93804576,0.00022739,3]
[317613491,1709873439339,-500.0,0.00022739,2]
[317613494,1709873439348,-500.92220479,0.00022739,2]
[317613496,1709873439357,-500.0,0.00022739,2]
[317613498,1709873439366,-500.0,0.00022739,2]
[317613500,1709873439375,-500.0,0.00022739,2]
[317613502,1709873439385,-500.0,0.00022739,2]
[317613503,1709873439394,-502.15582381,0.00022739,2]
[317613505,1709873439403,-500.0,0.00022739,2]
[317613508,1709873439413,-500.0,0.00022739,2]
[317613509,1709873439422,-500.0,0.00022739,2]
[317613511,1709873439431,-326.33289031,0.00022739,2]
[317613513,1709873439440,-500.0,0.00022739,2]
[317613515,1709873439450,-581.2138367,0.00022739,2]
[317613517,1709873439460,-500.0,0.00022739,2]
[317613519,1709873439469,-553.67483685,0.00022739,2]
[317613521,1709873439478,-500.0,0.00022739,2]
[317613523,1709873439488,-644.75627118,0.00022739,2]
[317613525,1709873439496,-529.18119048,0.00022739,2]
[317613527,1709873439506,-500.0,0.00022739,2]
[317613529,1709873439515,-500.0,0.00022739,2]
[317613531,1709873439524,-286.21308106,0.00022739,2]
[317613533,1709873439534,-500.0,0.00022739,2]
[317613535,1709873439544,-500.0,0.00022739,2]
[317613537,1709873439554,-500.95755695,0.00022739,2]
[317613539,1709873439563,-341.35450113,0.00022739,2]
[317613541,1709873439572,-500.0,0.00022739,2]
[317613543,1709873439581,-500.0,0.00022739,2]
[317613545,1709873439590,-500.0,0.00022739,2]
[317613548,1709873439600,-500.0,0.00022739,2]
[317613549,1709873439609,-236.31105404,0.00022739,2]
[317613551,1709873439618,-545.11,0.00022739,2]
[317613553,1709873439628,-545.11,0.00022739,2]
[317613555,1709873439637,-501.82062945,0.00022739,2]
[317613557,1709873439646,-411.24165597,0.00022739,2]
[317613559,1709873439655,-500.0,0.00022739,2]
[317613562,1709873439664,-500.0,0.00022739,2]
[317613564,1709873439673,-1399.56,0.00022739,2]
[317613566,1709873439682,-1399.56,0.00022739,2]
[317613567,1709873439691,-500.0,0.00022739,2]
[317613569,1709873439700,-500.0,0.00022739,2]
[317613571,1709873439709,-500.0,0.00022739,2]
[317613573,1709873439718,-500.0,0.00022739,2]
[317613575,1709873439728,-503.43875869,0.00022739,2]
[317613577,1709873439737,-750.49,0.00022739,2]
[317613579,1709873439746,-750.49,0.00022739,2]
[317613581,1709873439756,-500.0,0.00022739,2]
[317613583,1709873439765,-500.0,0.00022739,2]
[317613586,1709873439774,-500.0,0.00022739,2]
[317613587,1709873439783,-500.0,0.00022739,2]
[317613589,1709873439792,-502.21494323,0.00022739,2]
[317613592,1709873439803,-188.13369332,0.00022739,2]
[317613594,1709873439812,-500.0,0.00022739,2]
[317613595,1709873439821,-500.0,0.00022739,2]
[317613597,1709873439830,-500.0,0.00022739,2]
[317613599,1709873439839,-500.0,0.00022739,2]
[317613602,1709873439848,-220.74999257,0.00022739,2]
[317613603,1709873439857,-500.0,0.00022739,2]
[317613605,1709873439866,-500.0,0.00022739,2]
[317613607,1709873439875,-500.0,0.00022739,2]
[317613609,1709873439884,-500.0,0.00022739,2]
[317613611,1709873439893,-500.0,0.00022739,2]
[317613613,1709873439902,-500.0,0.00022739,2]
[317613616,1709873439912,-500.0,0.00022739,2]
[317613618,1709873439921,-501.61391797,0.00022739,2]
[317613620,1709873439933,-620.50134904,0.00022739,2]
[317613623,1709873439948,-500.0,0.00022739,2]
[317613625,1709873439961,-621.20428097,0.00022739,2]
[317613627,1709873439975,-205.51187411,0.00022739,2]
[317613630,1709873439986,-500.0,0.00022739,2]
[317613632,1709873439997,-185.19789151,0.00022739,2]
[317613634,1709873440011,-907.03,0.00022739,2]
[317613637,1709873440024,-907.03,0.00022739,2]
[317613639,1709873440037,-635.75839874,0.00022739,2]
[317613642,1709873440050,-500.0,0.00022739,2]
[317613644,1709873440063,-503.13057204,0.00022739,2]
[317613646,1709873440076,-1164.1,0.00022739,2]
[317613648,1709873440086,-1164.1,0.00022739,2]
[317613651,1709873440098,-214.75463953,0.00022739,2]
[317613655,1709873440126,-500.0,0.00022739,2]
[317613658,1709873440141,-500.0,0.00022739,2]
[317613660,1709873440154,-500.0,0.00022739,2]
[317613662,1709873440166,-500.0,0.00022739,2]
[317613665,1709873440182,-716.1,0.00022739,2]
[317613668,1709873440196,-716.1,0.00022739,2]
[317613670,1709873440207,-527.05,0.00022739,2]
[317613672,1709873440220,-527.05,0.00022739,2]
[317613675,1709873440235,-500.0,0.00022739,2]
[317613677,1709873440248,-500.0,0.00022739,2]
[317613680,1709873440265,-500.0,0.00022739,2]
[317613683,1709873440279,-500.0,0.00022739,2]
[317613685,1709873440292,-500.0,0.00022739,2]
[317613688,1709873440306,-500.0,0.00022739,2]
[317613690,1709873440318,-500.0,0.00022739,2]
[317613693,1709873440332,-396.51820293,0.00022739,2]
[317613695,1709873440346,-500.0,0.00022739,2]
[317613698,1709873440360,-500.0,0.00022739,2]
[317613700,1709873440373,-587.42100514,0.00022739,2]
[317613702,1709873440386,-500.0,0.00022739,2]
[317613705,1709873440397,-500.0,0.00022739,2]
[317613707,1709873440407,-500.0,0.00022739,2]
[317613709,1709873440418,-500.0,0.00022739,2]
[317613711,1709873440431,-500.0,0.00022739,2]
[317613713,1709873440444,-500.0,0.00022739,2]
[317613716,1709873440457,-500.0,0.00022739,2]
[317613718,1709873440468,-500.0,0.00022739,2]
[317613720,1709873440483,-500.0,0.00022739,2]
[317613723,1709873440494,-500.0,0.00022739,2]
[317613725,1709873440507,-643.29577918,0.00022739,2]
[317613727,1709873440517,-500.0,0.00022739,2]
[317613729,1709873440531,-500.0,0.00022739,2]
[317613732,1709873440544,-500.0,0.00022739,2]
[317613734,1709873440558,-500.0,0.00022739,2]
[317613737,1709873440574,-500.0,0.00022739,2]
[317613739,1709873440588,-188.71904759,0.00022739,2]
[317613742,1709873440603,-500.0,0.00022739,2]
[317613744,1709873440615,-500.0,0.00022739,2]
[317613746,1709873440627,-227.58769299,0.00022739,2]
[317613748,1709873440639,-500.0,0.00022739,2]
[317613751,1709873440651,-500.0,0.00022739,2]
[317613753,1709873440663,-500.0,0.00022739,2]
[317613755,1709873440675,-500.0,0.00022739,2]
[317613758,1709873440687,-500.0,0.00022739,2]
[317613760,1709873440698,-568.47915297,0.00022739,2]
[317613762,1709873440710,-500.0,0.00022739,2]
[317613764,1709873440721,-500.0,0.00022739,2]
[317613766,1709873440732,-500.0,0.00022739,2]
[317613769,1709873440743,-500.0,0.00022739,2]
[317613771,1709873440754,-500.0,0.00022739,2]
[317613773,1709873440766,-500.0,0.00022739,2]
[317613775,1709873440776,-500.0,0.00022739,2]
[317613777,1709873440787,-500.0,0.00022739,2]
[317613779,1709873440798,-500.0,0.00022739,2]
[317613782,1709873440810,-500.0,0.00022739,2]
[317613784,1709873440821,-500.0,0.00022739,2]
[317613786,1709873440832,-822.97,0.00022739,2]
[317613788,1709873440843,-822.97,0.00022739,2]
[317613791,1709873440855,-500.0,0.00022739,2]
[317613793,1709873440866,-500.0,0.00022739,2]
[317613795,1709873440877,-500.0,0.00022739,2]
[317613797,1709873440888,-500.0,0.00022739,2]
[317613799,1709873440899,-500.0,0.00022739,2]
[317613801,1709873440910,-500.0,0.00022739,2]
[317613804,1709873440920,-597.17524747,0.00022739,2]
[317613806,1709873440931,-824.2,0.00022739,2]
[317613808,1709873440941,-824.2,0.00022739,2]
[317613810,1709873440952,-500.0,0.00022739,2]
[317613812,1709873440963,-500.0,0.00022739,2]
[317613815,1709873440973,-500.0,0.00022739,2]
[317613817,1709873440984,-500.0,0.00022739,2]
[317613819,1709873440996,-500.0,0.00022739,2]
[317613821,1709873441007,-441.63552562,0.00022739,2]
[317613823,1709873441018,-500.0,0.00022739,2]
[317613826,1709873441028,-500.0,0.00022739,2]
[317613828,1709873441039,-500.0,0.00022739,2]
[317613830,1709873441049,-500.0,0.00022739,2]
[317613832,1709873441061,-615.98687782,0.00022739,2]
[317613847,1709873441188,-500.0,0.00022739,2]
[317613850,1709873441199,-500.0,0.00022739,2]
[317613852,1709873441208,-1029.62,0.00022739,2]
[317613854,1709873441218,-1029.62,0.00022739,2]
[317613855,1709873441226,-500.0,0.00022739,2]
[317613857,1709873441236,-500.0,0.00022739,2]
[317613859,1709873441245,-500.0,0.00022739,2]
[317613861,1709873441254,-500.0,0.00022739,2]
[317613863,1709873441264,-500.0,0.00022739,2]
[317613865,1709873441273,-500.0,0.00022739,2]
[317613867,1709873441282,-500.0,0.00022739,2]
[317613869,1709873441291,-500.0,0.00022739,2]
[317613871,1709873441301,-500.0,0.00022739,2]
[317613874,1709873441311,-500.0,0.00022739,2]
[317613875,1709873441321,-500.0,0.00022739,2]
[317613876,1709873441329,-500.0,0.00022739,2]
[317613877,1709873441338,-500.0,0.00022739,2]
[317613878,1709873441347,-455.82816278,0.00022739,2]
[317613880,1709873441356,-378.65171676,0.00022739,2]
[317613882,1709873441365,-500.0,0.00022739,2]
[317613883,1709873441375,-500.0,0.00022739,2]
[317613884,1709873441384,-500.0,0.00022739,2]
[317613885,1709873441394,-500.0,0.00022739,2]
[317613886,1709873441403,-500.0,0.00022739,2]
[317613888,1709873441412,-500.39135916,0.00022739,2]
[317613890,1709873441422,-500.0,0.00022739,2]
[317613892,1709873441431,-500.0,0.00022739,2]
[317613894,1709873441442,-500.0,0.00022739,2]
[317613895,1709873441453,-500.0,0.00022739,2]
[317613896,1709873441463,-500.0,0.00022739,2]
[317613897,1709873441473,-500.0,0.00022739,2]
[317613898,1709873441482,-556.53881461,0.00022739,2]
[317613899,1709873441491,-500.0,0.00022739,2]
[317613900,1709873441503,-500.0,0.00022739,2]
[317613901,1709873441513,-500.0,0.00022739,2]
[317613902,1709873441522,-500.0,0.00022739,2]
[317613903,1709873441532,-611.89773945,0.00022739,2]
[317613904,1709873441541,-500.0,0.00022739,2]
[317613905,1709873441551,-500.0,0.00022739,2]
[317613906,1709873441563,-500.0,0.00022739,2]
[317613907,1709873441572,-500.0,0.00022739,2]
[317613908,1709873441582,-500.0,0.00022739,2]
[317613909,1709873441592,-500.0,0.00022739,2]
[317613910,1709873441601,-500.0,0.00022739,2]
[317613911,1709873441612,-500.0,0.00022739,2]
[317613912,1709873441621,-500.0,0.00022739,2]
[317613913,1709873441631,-500.0,0.00022739,2]
[317613914,1709873441640,-500.0,0.00022739,2]
[317613915,1709873441649,-500.0,0.00022739,2]
[317613917,1709873441659,-500.0,0.00022739,2]
[317613919,1709873441669,-500.0,0.00022739,2]
[317613921,1709873441679,-500.0,0.00022739,2]
[317613923,1709873441689,-500.0,0.00022739,2]
[317613925,1709873441699,-500.0,0.00022739,2]
[317613927,1709873441709,-502.92954804,0.00022739,2]
[317613929,1709873441718,-500.0,0.00022739,2]
[317613931,1709873441728,-162.19745219,0.00022739,2]
[317613933,1709873441737,-500.0,0.00022739,2]
[317613935,1709873441746,-500.0,0.00022739,2]
[317613937,1709873441755,-715.65,0.00022739,2]
[317613939,1709873441764,-715.65,0.00022739,2]
[317613941,1709873441774,-715.65,0.00022739,2]
[317613943,1709873441785,-715.65,0.00022739,2]
[317613945,1709873441795,-715.65,0.00022739,2]
[317613947,1709873441804,-715.65,0.00022739,2]
[317613949,1709873441815,-715.65,0.00022739,2]
[317613951,1709873441824,-715.65,0.00022739,2]
[317613953,1709873441834,-715.65,0.00022739,2]
[317613955,1709873441843,-500.0,0.00022739,2]
[317613957,1709873441853,-502.87800221,0.00022739,2]
[317613959,1709873441861,-500.0,0.00022739,2]
[317613961,1709873441871,-500.0,0.00022739,2]
[317613963,1709873441880,-500.0,0.00022739,2]
[317613965,1709873441889,-380.57276159,0.00022739,2]
[317613967,1709873441897,-500.0,0.00022739,2]
[317613969,1709873441906,-500.0,0.00022739,2]
[317613970,1709873441915,-500.0,0.00022739,2]
[317613972,1709873441924,-234.97909932,0.00022739,2]
[317613974,1709873441933,-500.0,0.00022739,2]
[317613976,1709873441943,-500.0,0.00022739,2]
[317613978,1709873441953,-500.23,0.00022739,2]
[317613980,1709873441963,-500.23,0.00022739,2]
[317613982,1709873441973,-500.0,0.00022739,2]
[317613984,1709873441982,-500.0,0.00022739,2]
[317613985,1709873441993,-500.0,0.00022739,2]
[317613987,1709873442003,-500.0,0.00022739,2]
[317613989,1709873442012,-500.0,0.00022739,2]
[317613991,1709873442022,-500.0,0.00022739,2]
[317613993,1709873442031,-500.0,0.00022739,2]
[317613994,1709873442040,-500.0,0.00022739,2]
[317613996,1709873442050,-202.58541306,0.00022739,2]
[317613998,1709873442062,-500.0,0.00022739,2]
[317614000,1709873442072,-201.16129325,0.00022739,2]
[317614002,1709873442083,-500.0,0.00022739,2]
[317614004,1709873442093,-368.08762743,0.00022739,2]
[317614005,1709873442103,-500.0,0.00022739,2]
[317614007,1709873442112,-500.0,0.00022739,2]
[317614009,1709873442121,-858.92,0.00022739,2]
[317614010,1709873442130,-858.92,0.00022739,2]
[317614012,1709873442140,-369.25585588,0.00022739,2]
[317614014,1709873442150,-708.03,0.00022739,2]
[317614016,1709873442160,-708.03,0.00022739,2]
[317614018,1709873442169,-500.0,0.00022739,2]
[317614019,1709873442178,-500.0,0.00022739,2]
[317614021,1709873442187,-500.0,0.00022739,2]
[317614023,1709873442196,-500.0,0.00022739,2]
[317614025,1709873442206,-500.0,0.00022739,2]
[317614026,1709873442215,-500.0,0.00022739,2]
[317614028,1709873442225,-500.0,0.00022739,2]
[317614030,1709873442234,-500.0,0.00022739,2]
[317614032,1709873442243,-332.20640752,0.00022739,2]
[317614034,1709873442252,-500.0,0.00022739,2]
[317614036,1709873442261,-500.0,0.00022739,2]
[317614037,1709873442269,-500.0,0.00022739,2]
[317614039,1709873442279,-500.0,0.00022739,2]
[317614041,1709873442288,-500.0,0.00022739,2]
[317614043,1709873442298,-500.0,0.00022739,2]
[317614045,1709873442311,-572.62093926,0.00022739,2]
[317614046,1709873442320,-500.0,0.00022739,2]
[317614048,1709873442330,-500.0,0.00022739,2]
[317614050,1709873442340,-500.0,0.00022739,2]
[317614052,1709873442349,-500.0,0.00022739,2]
[317614053,1709873442359,-410.33409722,0.00022739,2]
[317614055,1709873442369,-500.0,0.00022739,2]
[317614057,1709873442379,-500.0,0.00022739,2]
[317614059,1709873442388,-500.0,0.00022739,2]
[317614060,1709873442397,-500.0,0.00022739,2]
[317614062,1709873442407,-500.0,0.00022739,2]
[317614064,1709873442417,-510.44036809,0.00022739,2]
[317614066,1709873442426,-500.0,0.00022739,2]
[317614068,1709873442436,-500.0,0.00022739,2]
[317614070,1709873442446,-500.0,0.00022739,2]
[317614072,1709873442459,-500.0,0.00022739,2]
[317614073,1709873442468,-500.0,0.00022739,2]
[317614075,1709873442477,-500.0,0.00022739,2]
[317614077,1709873442486,-500.0,0.00022739,2]
[317614079,1709873442498,-575.86853228,0.00022739,2]
[317614081,1709873442507,-500.0,0.00022739,2]
[317614083,1709873442516,-500.0,0.00022739,2]
[317614084,1709873442526,-500.0,0.00022739,2]
[317614086,1709873442535,-522.56525615,0.00022739,2]
[317614088,1709873442545,-500.0,0.00022739,2]
[317614089,1709873442554,-500.0,0.00022739,2]
[317614091,1709873442567,-3724.01,0.00022739,2]
[317614093,1709873442576,-318.27612522,0.00022739,2]
[317614095,1709873442585,-3724.01,0.00022739,2]
[317614097,1709873442594,-631.71,0.00022739,2]
[317614099,1709873442604,-631.71,0.00022739,2]
[317614100,1709873442613,-848.81,0.00022739,2]
[317614102,1709873442622,-848.81,0.00022739,2]
[317614104,1709873442632,-476.11788288,0.00022739,2]
[317614106,1709873442641,-500.0,0.00022739,2]
[317614108,1709873442650,-500.0,0.00022739,2]
[317614109,1709873442659,-500.0,0.00022739,2]
[317614111,1709873442669,-500.0,0.00022739,2]
[317614113,1709873442678,-500.0,0.00022739,2]
[317614115,1709873442687,-500.0,0.00022739,2]
[317614117,1709873442696,-500.0,0.00022739,2]
[317614118,1709873442706,-500.0,0.00022739,2]
[317614120,1709873442715,-500.0,0.00022739,2]
[317614122,1709873442724,-500.0,0.00022739,2]
[317614124,1709873442733,-500.0,0.00022739,2]
[317614126,1709873442743,-500.0,0.00022739,2]
[317614128,1709873442752,-500.0,0.00022739,2]
[317614129,1709873442762,-500.0,0.00022739,2]
[317614131,1709873442771,-500.0,0.00022739,2]
[317614133,1709873442781,-500.0,0.00022739,2]
[317614135,1709873442790,-500.0,0.00022739,2]